Workbook

Sheet Options
A1: 6 | Y1: 55
C8: Description and details of Macro
P9: Exercise: | Q9: MTEC | Y9: 60
P10: Count across | Q10: =COUNTIF(Q11:AS11,">0") -> 17
C11: Purpose: | E11: Macro to insert missing formulas on personnel sheet and update ceiling numbers | P11: Count down | Q11: =COUNTA(Q13:Q307) -> 6 | R11: =COUNTA(R13:R305) -> 35 | S11: =COUNTA(S13:S293) -> 39 | T11: =COUNTA(T13:T292) -> 4 | U11: =COUNTA(U13:U291) -> 18 | V11: =COUNTA(V13:V292) -> 1 | W11: =COUNTA(W13:W306) -> 12 | X11: =COUNTA(X13:X306) -> 20 | Y11: =COUNTA(Y13:Y297) -> 15 | Z11: =COUNTA(Z13:Z306) -> 1 | AA11: =COUNTA(AA13:AA304) -> 2 | AB11: =COUNTA(AB13:AB306) -> 8 | AC11: =COUNTA(AC13:AC306) -> 8 | AD11: =COUNTA(AD13:AD306) -> 1 | AE11: =COUNTA(AE13:AE307) -> 4 | AF11: =COUNTA(AF13:AF306) -> 4 | AG11: 1 | AH11: 0 | AI11: 0 | AJ11: 0 | AK11: 0 | AL11: 0 | AM11: 0 | AN11: 0 | AO11: 0 | AP11: 0 | AQ11: 0 | AR11: 0 | AS11: 0
C12: Sheets: | E12: ENE(Personnel), Cover | P12: Sheet No./Name | Q12: Summary | R12: Prog | S12: Sprog | T12: Function shift | U12: Func Shifts - Desc | V12: Reprioritisation | W12: Personnel | X12: Receipts | Y12: InfraS | Z12: ODA Summary | AA12: 2013 ENE | AB12: Deviations | AC12: Expend trends | AD12: Dept specific info | AE12: Training | AF12: PPP Projects | AG12: Dept specific info - own | AH12: 19 | AI12: 20 | AJ12: 21 | AK12: 22 | AL12: 23 | AM12: 24 | AN12: 25 | AO12: 26 | AP12: 27 | AQ12: 28 | AR12: 29 | AS12: 30
C13: Applicable to: | P13: Area: | Q13: G8:J9 | R13: G9 | S13: G302:H302 | T13: G15:N16 | U13: G113 | V13: F14:Z113 | W13: G68:J84 | X13: H14:O14 | Y13: G12:T161 | Z13: F14:W267 | AA13: G43:J57 | AB13: K14 | AC13: G14:I28 | AD13: F14:M1013 | AE13: G15:M15 | AF13: H50:L50 | AG13: A1:CA10000
C14: Date of macro: | E14: 09/01/2017 | Q14: F12:Q12 | R14: K9:M9 | S14: K302:M302 | T14: P15:R16 | U14: G115 | W14: L68:M84 | X14: F18:F22 | Y14: W12:X161 | AA14: G59:J59 | AB14: O15:Q17 | AC14: K14:K28 | AE14: G16:I16 | AF14: H58:L60
C15: Effective until: | Q15: F31:F45 | R15: F12:T12 | S15: F305:T305 | T15: F18:F47 | U15: G121:N123 | W15: O68:P84 | X15: H18:O22 | Y15: AB12:AC161 | AB15: K18 | AC15: G31:I35 | AE15: G18:J24 | AF15: H63:L67
C16: More Information: | E16: This macro will make the following adjustments to the model: Personnel sheet formulas Update departmental and CoE ceilings To make sure that all calculations are updated, do the following: After running the macro. SAVE THE FILE! | Q16: AW31:AW45 | R16: F16:W35 | S16: F310:G319 | U16: P121:R123 | W16: R68:S84 | X16: F24:F28 | Y16: AG12:AH161 | AB16: O19:Q25 | AC16: K31:K35 | AE16: K23:M23 | AF16: H72:L80
Q17: AW48:AW52 | R17: F47:F71 | S17: I310:Y319 | U17: G125:N126 | W17: U68:V84 | X17: H24:O28 | Y17: AL12:AQ161 | AB17: K26 | AC17: G44:I46
R18: G47:G71 | S18: AD310:AH319 | U18: P125:R126 | W18: X68:X84 | X18: F30:F34 | Y18: G164:T313 | AB18: O27:Q34 | AC18: G48:I54
R19: I160:Q160 | S19: AM310:AN319 | U19: G129:N130 | W19: L85 | X19: H30:O34 | Y19: W164:X313 | AB19: K34 | AC19: G56:I62
R20: S160 | S20: F326:G334 | U20: P129:R130 | W20: O85 | X20: F36:F40 | Y20: AB164:AC313 | AB20: O38:Q38 | AC20: G63:I63
R21: U160:W160 | S21: I326:Q335 | U21: G132:N135 | W21: R85 | X21: H36:O40 | Y21: AG164:AH313
R22: AD160:AF160 | S22: S326:S335 | U22: P132:R135 | W22: U85 | X22: H42:O47 | Y22: AL164:AQ313
R23: AM160:AO160 | S23: U326:W335 | U23: G137:N139 | W23: X85 | X23: H49:O51 | Y23: G316:T465
R24: F177:G246 | S24: AD326:AF335 | U24: P137:R139 | X24: H53:O53 | Y24: W316:X465
R25: I177:Q246 | S25: AM326:AO335 | U25: G141:N142 | X25: F55:F59 | Y25: AB316:AC465
R26: S177:S246 | S26: I340:Q341 | U26: P141:R142 | X26: H55:O60 | Y26: AG316:AH465
R27: U177:W246 | S27: S340:S341 | U27: G145:N146 | X27: H62:O63 | Y27: AL316:AQ465
R28: AD177:AF246 | S28: U340:W341 | U28: P145:R146 | X28: H66:O68
R29: AM177:AO246 | S29: AD340:AF341 | U29: G148:N155 | X29: F72:F81
R30: AW177:BB246 | S30: AM340:AO341 | U30: P148:R155 | X30: H72:O81
R31: F248:G261 | S31: I343:Q380 | X31: F83:F92
R32: I248:Q261 | S32: S343:S380 | X32: H83:O92
R33: S248:S261 | S33: U343:W380
R34: U248:W261 | S34: AD343:AF380
R35: AD248:AF261 | S35: AM343:AO380
R36: AM248:AO261 | S36: I382:Q383
R37: AX248:BB261 | S37: S382:S383
R38: F269:F281 | S38: U382:W383
R39: I269:Q281 | S39: AD382:AF383
R40: S269:S281 | S40: AM382:AO383
R41: U269:W281 | S41: I410:Q411
R42: AD269:AF281 | S42: S410:S411
R43: AM269:AO281 | S43: U410:W411
R44: AW269:AZ281 | S44: AD410:AF411
R45: F287:G296 | S45: AM410:AO411
R46: J287:N296 | S46: I413:Q419
S47: S413:S419
S48: U413:W419
S49: AD413:AF419
S50: AM413:AO419
E76: NT Indi
E77: 1
D80: Path: | E80: P:\1. Budget\2017\4. ENE\A. Database
D81: File prefix: | E81: Budget2017-Vote
E120: Checks
E121: Over / (under) Programme total less Economic classification total | H121: 0 | I121: 0 | K121: 0.3334899545 | M121: 0 | N121: 0
E122: Over / (under) Column H row 115 not equal to Adjusted Appropriation reflected in ENE 2015. | H122: 0
K143: 0 | L143: 0 | M143: 0 | N143: 0 | O143: 0 | P143: 0 | Q143: 0 | R143: 0 | S143: 0 | T143: 0 | W143: 0

Sheet Sheet1
X1: Revised Baseline
B2: Dept Index No. | C2: Vote No. | D2: Department | E2: Dept Index No. | F2: Vote No. | G2: Department | H2: Category | I2: ID1 | J2: Contact Person | K2: Tel | L2: email | M2: Contact Person | N2: Tel | O2: email | P2: ID2 | Q2: Contact Person | R2: Tel | S2: email | T2: 2017/18 | U2: 2018/19 | V2: 2019/20 | X2: Vote No. | Y2: Dept | Z2: 2017/18 | AA2: 2018/19 | AB2: 2019/20
A3: =+D3=G3 -> FALSE | B3: 37 | C3: 1 | D3: The Presidency | E3: 1 | F3: 24 | G3: Agriculture, Forestry and Fisheries | J3: Bothwell Deka | K3: (012) 395 6784 | L3: Bothwell.Deka@treasury.gov.za | M3: Humbelani Ramuedzisi | N3: (012) 315 5585 | O3: Humbelani.Ramuedzisi@treasury.gov.za | S3: datafileNAT@treasury.gov.za | T3: 6706260 | U3: 6999026 | V3: 7435010 | X3: 24 | Y3: Agriculture, Forestry and Fisheries | Z3: 6877034 | AA3: 7212438 | AB3: 7653758
B4: 25 | C4: 2 | D4: Parliament | E4: 2 | F4: 37 | G4: Arts and Culture | J4: Judy Naidoo | K4: (012) 315 5269 | L4: Judy.Naidoo@treasury.gov.za | M4: Letsepa Pakkies | N4: (012) 395 6656 | O4: Letsepa.Pakkies@treasury.gov.za | S4: datafileNAT@treasury.gov.za | T4: 4492689 | U4: 4542875 | V4: 4802404 | X4: 37 | Y4: Arts and Culture | Z4: 4449845 | AA4: 4491651 | AB4: 4752325
B5: 6 | C5: 3 | D5: Cooperative Governance | E5: 3 | F5: 14 | G5: Basic Education | J5: Spencer Janari | K5: (012) 315 5436 | L5: Spencer.Janari@treasury.gov.za | M5: Pindi Masiso | N5: (012) 315 5722 | O5: Pindi.Masiso@treasury.gov.za | S5: datafileNAT@treasury.gov.za | T5: 23471039 | U5: 24829596 | V5: 26230172 | X5: 14 | Y5: Basic Education | Z5: 23408620 | AA5: 24795329 | AB5: 26195958
B6: 15 | C6: 4 | D6: Home Affairs | E6: 4 | F6: 47 | G6: Centre for Public Service Innovation | J6: George Tembo | K6: (012) 315 5514 | L6: George.Tembo@treasury.gov.za | M6: Mokgatla Tema | N6: (012) 315 5948 | O6: Mokgatla.Tema@treasury.gov.za | S6: datafileNAT@treasury.gov.za | T6: 34434 | U6: 36431 | V6: 38864 | X6: 47 | Y6: Centre for Public Service Innovation | Z6: 34055 | AA6: 36030 | AB6: 38437
B7: 18 | C7: 5 | D7: International Relations and Cooperation | E7: 5 | F7: 41 | G7: Civilian Secretariat | J7: Nompumelelo Radebe | K7: (012) 315 5957 | L7: Nompumelelo.Radebe@treasury.gov.za | M7: Sithabiso Buthelezi | N7: (012) 406 9025 | O7: Sithabiso.Buthelezi@treasury.gov.za | S7: datafileNAT@treasury.gov.za | T7: 126057 | U7: 136079 | V7: 145670 | X7: 41 | Y7: Civilian Secretariat | Z7: 124673 | AA7: 134584 | AB7: 144071
B8: 26 | C8: 6 | D8: Performance Monitoring and Evaluation | E8: 6 | F8: 3 | G8: Communications | J8: Japie Jacobs | K8: (012) 315 5546 | L8: Japie.Jacobs@treasury.gov.za | M8: Rhoda Marais | N8: (012) 315 5906 | O8: Rhoda.Marais@treasury.gov.za | S8: datafileNAT@treasury.gov.za | T8: 1430984 | U8: 1526898 | V8: 1618996 | X8: 3 | Y8: Communications | Z8: 1425095 | AA8: 1520650 | AB8: 1612340
B9: 31 | C9: 7 | D9: Public Works | E9: 7 | F9: 4 | G9: Cooperative Governance And Traditional Affairs | J9: Misaveni Ngobeni | K9: (012) 315 5305 | L9: misaveni.ngobeni@treasury.gov.za | M9: Millicent Mulaudzi | N9: (012) 395 6576 | O9: Millicent.Mulaudzi@treasury.gov.za | S9: datafileNAT@treasury.gov.za | T9: 78557210 | U9: 84258462 | V9: 90164054 | X9: 4 | Y9: Cooperative Governance And Traditional Affairs | Z9: 78414485 | AA9: 85113770 | AB9: 91060369
B10: 43 | C10: 8 | D10: Women, Children and People with Disabilities | E10: 8 | F10: 18 | G10: Correctional Services | J10: Werner Krause | K10: (012) 315 5211 | L10: Werner.Krause@treasury.gov.za | M10: Keabetswe Matlwa | N10: (012) 395 6678 | O10: Keabetswe.Matlwa@treasury.gov.za | S10: datafileNAT@treasury.gov.za | T10: 23048928 | U10: 24700701 | V10: 26428500 | X10: 18 | Y10: Correctional Services | Z10: 22814124 | AA10: 24453616 | AB10: 26155812
B11: 12 | C11: 9 | D11: Government Communication and Information System | E11: 9 | F11: 19 | G11: Defence And Military Veterans | J11: Mashudu Bidzha | K11: (012) 315 5344 | L11: Mashudu.Bidzha@treasury.gov.za | M11: Lesiba Ledwaba | N11: (012) 395 6660 | O11: Lesiba.Ledwaba@treasury.gov.za | S11: datafileNAT@treasury.gov.za | T11: 48744615 | U11: 50725685 | V11: 54111102 | X11: 19 | Y11: Defence And Military Veterans | Z11: 48618790 | AA11: 50610314 | AB11: 53966436
B12: 24 | C12: 10 | D12: National Treasury | E12: 10 | F12: 25 | G12: Economic Development | J12: Rudzani Sikhwari | K12: (012) 315 5823 | L12: Rudzani.Sikhwari@treasury.gov.za | S12: datafileNAT@treasury.gov.za | T12: 714285 | U12: 751005 | V12: 794897 | X12: 25 | Y12: Economic Development | Z12: 797237 | AA12: 844726 | AB12: 904273
B13: 28 | C13: 11 | D13: Public Enterprises | E13: 11 | F13: 26 | G13: Energy | J13: Rezah Atcha | K13: (012) 315 5287 | L13: Rezah.Atcha@treasury.gov.za | M13: Nomagugu Madikane | N13: (012) 315 5312 | O13: Nomagugu.Madikane@treasury.gov.za | S13: datafileNAT@treasury.gov.za | T13: 8128980 | U13: 8486400 | V13: 8968189 | X13: 26 | Y13: Energy | Z13: 8113450 | AA13: 8469943 | AB13: 9950774
B14: 29 | C14: 12 | D14: Public Service and Administration | E14: 12 | F14: 27 | G14: Environmental Affairs | J14: Ricardo Andrews | K14: (012) 315 5766 | L14: Ricardo.Andrews@treasury.gov.za | M14: Ashley Ramasimu | N14: (012) 315 5166 | O14: Mukundi.Maphangwa@treasury.gov.za | S14: datafileNAT@treasury.gov.za | T14: 6660557 | U14: 6756800 | V14: 7156998 | X14: 27 | Y14: Environmental Affairs | Z14: 6848214 | AA14: 7061226 | AB14: 7378025
B15: 36 | C15: 13 | D15: Statistics South Africa | E15: 13 | F15: 46 | G15: Government Communication and Information System | J15: Japie Jacobs | K15: (012) 315 5546 | L15: Japie.Jacobs@treasury.gov.za | M15: Thapelo Mokwana | N15: (012) 315 5796 | O15: Thapelo.Mokwana@treasury.gov.za | S15: datafileNAT@treasury.gov.za | T15: 405817 | U15: 432413 | V15: 461725 | X15: 46 | Y15: Government Communication and Information System | Z15: 404750 | AA15: 431267 | AB15: 460456
B16: 2 | C16: 14 | D16: Arts and Culture | E16: 14 | F16: 16 | G16: Health | J16: Aparna Kollipara | K16: (012) 315 5386 | L16: Aparna.Kollipara@treasury.gov.za | M16: Refiloe Thokoa | N16: (012) 395 6559 | O16: Refiloe.Thokoa@treasury.gov.za | S16: datafileNAT@treasury.gov.za | T16: 42778134 | U16: 46734183 | V16: 49370384 | X16: 16 | Y16: Health | Z16: 42625723 | AA16: 46666972 | AB16: 50384947
B17: 3 | C17: 15 | D17: Basic Education | E17: 15 | F17: 15 | G17: Higher Education and Training | J17: Nokwazi Makanya | K17: (012) 315 9057 | L17: Nokwazi.Makanya@treasury.gov.za | M17: Barileng Sape | N17: (012) 406 9069 | O17: Barileng.Sape@treasury.gov.za | S17: datafileNAT@treasury.gov.za | T17: 72003215 | U17: 77392319 | V17: 81905524 | X17: 15 | Y17: Higher Education and Training | Z17: 68949095 | AA17: 78639954 | AB17: 83774977
B18: 13 | C18: 16 | D18: Health | E18: 16 | F18: 5 | G18: Home Affairs | J18: Isaac Mabena | K18: (012) 315 5582 | L18: Isaac.Mabena@treasury.gov.za | S18: datafileNAT@treasury.gov.za | T18: 7060438 | U18: 7173675 | V18: 7641968 | X18: 5 | Y18: Home Affairs | Z18: 7055539 | AA18: 7816025 | AB18: 7647117
B19: 14 | C19: 17 | D19: Higher Education and Training | E19: 17 | F19: 38 | G19: Human Settlements | J19: James Archer | K19: (012) 395 6736 | L19: James.Archer@treasury.gov.za | M19: Lindiwe Ngcongwane | N19: (012) 315 5357 | O19: Lindiwe.Ngcongwane@treasury.gov.za | S19: datafileNAT@treasury.gov.za | T19: 34566326 | U19: 36620027 | V19: 38678373 | X19: 38 | Y19: Human Settlements | Z19: 33464300 | AA19: 35414719 | AB19: 37447502
B20: 20 | C20: 18 | D20: Labour | E20: 18 | F20: 20 | G20: Independent Police Investigative Directorate | J20: Nompumelelo Radebe | K20: (012) 315 5957 | L20: Nompumelelo.Radebe@treasury.gov.za | M20: Velisubuhle Buti | N20: (012) 395 6709 | O20: Sithabiso.Buthelezi@treasury.gov.za | S20: datafileNAT@treasury.gov.za | T20: 255482 | U20: 266958 | V20: 285824 | X20: 20 | Y20: Independent Police Investigative Directorate | Z20: 255482 | AA20: 266958 | AB20: 285824
B21: 34 | C21: 19 | D21: Social Development | E21: 19 | F21: 6 | G21: International Relations and Cooperation | J21: Gcobisa Matshaya | K21: (012) 315 5320 | L21: Gcobisa.Matshaya@treasury.gov.za | M21: Thulasizwe Motha | N21: (012) 406 9019 | O21: Thulasizwe.Motha@treasury.gov.za | S21: datafileNAT@treasury.gov.za | T21: 5913005 | U21: 6182570 | V21: 6581910 | X21: 6 | Y21: International Relations and Cooperation | Z21: 6574879 | AA21: 6765659 | AB21: 6505525
B22: 35 | C22: 20 | D22: Sport and Recreation South Africa | E22: 20 | F22: 21 | G22: Justice and Constitutional Development | J22: Maggy Mokoka | K22: (012) 315 5468 | L22: Maggy.Mokoka@treasury.gov.za | M22: Rendani Randela | N22: (012) 315 5345 | O22: rendani.randela@treasury.gov.za | S22: datafileNAT@treasury.gov.za | T22: 19123673 | U22: 20109884 | V22: 21457390 | X22: 21 | Y22: Justice and Constitutional Development | Z22: 18927308 | AA22: 19908353 | AB22: 21233941
B23: 7 | C23: 21 | D23: Correctional Services | E23: 21 | F23: 28 | G23: Labour | J23: Judy Naidoo | K23: (012) 315 5269 | L23: Judy.Naidoo@treasury.gov.za | M23: Nico Likhethe | N23: (012) 315 5773 | O23: Velisubuhle.Buti@treasury.gov.za | S23: datafileNAT@treasury.gov.za | T23: 3032004 | U23: 3224218 | V23: 3430933 | X23: 28 | Y23: Labour | Z23: 3065821 | AA23: 3266459 | AB23: 3451500
B24: 8 | C24: 22 | D24: Defence And Military Veterans | E24: 22 | F24: 42 | G24: Military Veterans | J24: Mashudu Bidzha | K24: (012) 315 5344 | L24: Mashudu.Bidzha@treasury.gov.za | M24: Lesiba Ledwaba | N24: (012) 395 6660 | O24: Lesiba.Ledwaba@treasury.gov.za | S24: datafileNAT@treasury.gov.za | T24: 634720 | U24: 673360 | V24: 713513 | X24: 42 | Y24: Military Veterans | Z24: 622111 | AA24: 660092 | AB24: 699502
B25: 17 | C25: 23 | D25: Independent Police Investigative Directorate | E25: 23 | F25: 29 | G25: Mineral Resources | J25: Bothwell Deka | K25: (012) 395 6784 | L25: Bothwell.Deka@treasury.gov.za | M25: Tumelo Mokgoshi | N25: (012) 395 6777 | O25: Tumelo.Mokgoshi@treasury.gov.za | S25: datafileNAT@treasury.gov.za | T25: 1847244 | U25: 1824594 | V25: 1938867 | X25: 29 | Y25: Mineral Resources | Z25: 1779449 | AA25: 1906669 | AB25: 1850012
B26: 19 | C26: 24 | D26: Justice and Constitutional Development | E26: 24 | F26: 44 | G26: National School of Government | J26: George Tembo | K26: (012) 315 5514 | L26: George.Tembo@treasury.gov.za | M26: Mokgatla Tema | N26: (012) 315 5948 | O26: Mokgatla.Tema@treasury.gov.za | S26: datafileNAT@treasury.gov.za | T26: 156562 | U26: 169451 | V26: 180127 | X26: 44 | Y26: National School of Government | Z26: 155506 | AA26: 168291 | AB26: 178890
E27: 25 | F27: 7 | G27: National Treasury | J27: Japie Jacobs | K27: (012) 315 5546 | L27: Japie.Jacobs@treasury.gov.za | M27: Rhoda Marais | N27: (012) 315 5906 | O27: Rhoda.Marais@treasury.gov.za | S27: datafileNAT@treasury.gov.za | T27: 646670159 | U27: 692386151 | V27: 738270058 | X27: 7 | Y27: National Treasury | Z27: 647558547 | AA27: 697191197 | AB27: 750460227
B28: 27 | C28: 25 | D28: Police | E28: 26 | F28: 22 | G28: Office of the Chief Justice and Judicial Administration | J28: Werner Krause | K28: (012) 315 5211 | L28: Werner.Krause@treasury.gov.za | M28: Keabetswe Matlwa | N28: (012) 395 6678 | O28: Keabetswe.Matlwa@treasury.gov.za | S28: datafileNAT@treasury.gov.za | T28: 1975067 | U28: 2082942 | V28: 2231769 | X28: 22 | Y28: Office of the Chief Justice and Judicial Administration | Z28: 1984625 | AA28: 2093064 | AB28: 2242458
B29: 1 | C29: 26 | D29: Agriculture, Forestry and Fisheries | E29: 27 | F29: 2 | G29: Parliament | J29: Isaac Mabena | K29: (012) 315 5582 | L29: Isaac.Mabena@treasury.gov.za | S29: datafileNAT@treasury.gov.za | T29: 2287483 | U29: 2390828 | V29: 2552853 | X29: 2 | Y29: Parliament | Z29: 2268235 | AA29: 2371139 | AB29: 2531189
B30: 9 | C30: 28 | D30: Economic Development | E30: 28 | F30: 8 | G30: Planning, Monitoring and Evaluation | J30: Gcobisa Matshaya | K30: (012) 315 5320 | L30: Gcobisa.Matshaya@treasury.gov.za | M30: Thulasizwe Motha | N30: (012) 406 9019 | O30: Thulasizwe.Motha@treasury.gov.za | S30: datafileNAT@treasury.gov.za | T30: 907761 | U30: 994255 | V30: 1014042 | X30: 8 | Y30: Planning, Monitoring and Evaluation | Z30: 923496 | AA30: 942489 | AB30: 995870
B31: 10 | C31: 29 | D31: Energy | E31: 29 | F31: 23 | G31: Police | J31: Nompumelelo Radebe | K31: (012) 315 5957 | L31: Nompumelelo.Radebe@treasury.gov.za | M31: Sithabiso Buthelezi | N31: (012) 406 9025 | O31: Sithabiso.Buthelezi@treasury.gov.za | S31: datafileNAT@treasury.gov.za | T31: 87252156 | U31: 92954320 | V31: 99199094 | X31: 23 | Y31: Police | Z31: 87025128 | AA31: 92741002 | AB31: 98945875
B32: 11 | C32: 30 | D32: Environmental Affairs | E32: 30 | F32: 9 | G32: Public Enterprises | J32: Thabiso Molewa | K32: (012) 315 6780 | L32: Thabiso.Molewa@treasury.gov.za | S32: datafileNAT@treasury.gov.za | T32: 279483 | U32: 289938 | V32: 309644 | X32: 9 | Y32: Public Enterprises | Z32: 266696 | AA32: 277153 | AB32: 296515
B33: 16 | C33: 31 | D33: Human Settlements | E33: 31 | F33: 10 | G33: Public Service and Administration | J33: George Tembo | K33: (012) 315 5514 | L33: George.Tembo@treasury.gov.za | M33: Mokgatla Tema | N33: (012) 315 5948 | O33: Mokgatla.Tema@treasury.gov.za | S33: datafileNAT@treasury.gov.za | T33: 900892 | U33: 948720 | V33: 1013458 | X33: 10 | Y33: Public Service and Administration | Z33: 897144 | AA33: 944648 | AB33: 1008521
B34: 22 | C34: 32 | D34: Mineral Resources | E34: 32 | F34: 45 | G34: Public Service Commission | J34: George Tembo | K34: (012) 315 5514 | L34: George.Tembo@treasury.gov.za | M34: Viwe Sobudula | N34: (012) 315 5015 | O34: Viwe.Sobudula@treasury.gov.za | S34: datafileNAT@treasury.gov.za | T34: 248397 | U34: 265722 | V34: 284794 | X34: 45 | Y34: Public Service Commission | Z34: 245664 | AA34: 262800 | AB34: 281662
B35: 32 | C35: 33 | D35: Rural Development and Land Reform | E35: 33 | F35: 11 | G35: Public Works | J35: George Tembo | K35: (012) 315 5514 | L35: George.Tembo@treasury.gov.za | M35: Mercy Mhlophe | N35: (012) 315 5598 | O35: Mercy.Mhlophe@treasury.gov.za | S35: datafileNAT@treasury.gov.za | T35: 7221159 | U35: 7661805 | V35: 8101277 | X35: 11 | Y35: Public Works | Z35: 7038130 | AA35: 7494254 | AB35: 7937780
B36: 33 | C36: 34 | D36: Science and Technology | E36: 34 | F36: 39 | G36: Rural Development and Land Reform | J36: Bothwell Deka | K36: (012) 395 6784 | L36: Bothwell.Deka@treasury.gov.za | M36: Kismore Mangondo | N36: (012) 315 5558 | O36: Kismore.Mangondo@treasury.gov.za | S36: datafileNAT@treasury.gov.za | T36: 10549450 | U36: 11078750 | V36: 11746199 | X36: 39 | Y36: Rural Development and Land Reform | Z36: 10114240 | AA36: 10580429 | AB36: 11213730
E37: 35 | F37: 30 | G37: Science and Technology | J37: Ricardo Andrews | K37: (012) 315 5766 | L37: Ricardo.Andrews@treasury.gov.za | S37: datafileNAT@treasury.gov.za | T37: 7562521 | U37: 7756351 | V37: 8197335 | X37: 30 | Y37: Science and Technology | Z37: 7557229 | AA37: 7916025 | AB37: 8191351
B38: 38 | C38: 35 | D38: Tourism | E38: 36 | F38: 31 | G38: Small Business Development | J38: Rudzani Sikhwari | K38: (012) 315 5823 | L38: Rudzani.Sikhwari@treasury.gov.za | S38: datafileNAT@treasury.gov.za | T38: 1459453 | U38: 1539979 | V38: 1629080 | X38: 31 | Y38: Small Business Development | Z38: 1449796 | AA38: 1529874 | AB38: 1618267
B39: 39 | C39: 36 | D39: Trade and Industry | E39: 37 | F39: 17 | G39: Social Development | J39: Lindi Mzankomo | K39: (012) 315 5256 | L39: Lindi.Mzankomo@treasury.gov.za | M39: Yusuf Mayet | N39: (012) 315 5189 | O39: Yusuf.Mayet@treasury.gov.za | S39: datafileNAT@treasury.gov.za | T39: 161520096 | U39: 174808504 | V39: 186810162 | X39: 17 | Y39: Social Development | Z39: 160707768 | AA39: 173186694 | AB39: 186109718
E40: 38 | F40: 40 | G40: Sport and Recreation South Africa | J40: Spencer Janari | K40: (012) 315 5436 | L40: Spencer.Janari@treasury.gov.za | M40: Letsepa Pakkies | N40: (012) 395 6656 | O40: Letsepa.Pakkies@treasury.gov.za | S40: datafileNAT@treasury.gov.za | T40: 1074986 | U40: 1135004 | V40: 1200831 | X40: 40 | Y40: Sport and Recreation South Africa | Z40: 1066564 | AA40: 1125570 | AB40: 1190865
B41: 41 | C41: 37 | D41: Transport | E41: 39 | F41: 12 | G41: Statistics South Africa | J41: Japie Jacobs | K41: (012) 315 5546 | L41: Japie.Jacobs@treasury.gov.za | M41: Thapelo Mokwana | N41: (012) 315 5796 | O41: Thapelo.Mokwana@treasury.gov.za | S41: datafileNAT@treasury.gov.za | T41: 2168280 | U41: 2200423 | V41: 2333120 | X41: 12 | Y41: Statistics South Africa | Z41: 2146313 | AA41: 2248769 | AB41: 2309125
B42: 42 | C42: 38 | D42: Water Affairs | E42: 40 | F42: 32 | G42: Telecommunications and Postal Services | J42: Rezah Atcha | K42: (012) 315 5287 | L42: Rezah.Atcha@treasury.gov.za | M42: Keitumetse Motshegwe | N42: (012) 395 6750 | O42: keitumetse.motshegwe@treasury.gov.za | S42: datafileNAT@treasury.gov.za | T42: 1636306 | U42: 1751126 | V42: 1853726 | X42: 32 | Y42: Telecommunications and Postal Services | Z42: 1614206 | AA42: 1727533 | AB42: 1828804
B43: 4 | C43: 39 | D43: Civilian Secretariat | E43: 41 | F43: 1 | G43: The Presidency | J43: Gcobisa Matshaya | K43: (012) 315 532 | L43: Gcobisa.Matshaya@treasury.gov.za | M43: Thulasizwe Motha | N43: (012) 406 9019 | O43: Thulasizwe.Motha@treasury.gov.za | S43: datafileNAT@treasury.gov.za | T43: 506646 | U43: 526770 | V43: 562922 | X43: 1 | Y43: The Presidency | Z43: 501542 | AA43: 521626 | AB43: 557178
B44: 21 | C44: 40 | D44: Military Veterans | E44: 42 | F44: 33 | G44: Tourism | J44: Ricardo Andrews | K44: (012) 315 5766 | L44: Ricardo.Andrews@treasury.gov.za | M44: Thamsanqa Nhlapo | N44: (012) 315 5024 | O44: Thamsanqa.Nhlapo@treasury.gov.za | S44: datafileNAT@treasury.gov.za | T44: 2067301 | U44: 2172618 | V44: 2300001 | X44: 33 | Y44: Tourism | Z44: 2140156 | AA44: 2288067 | AB44: 2397065
B45: 40 | C45: 41 | D45: Traditional Affairs | E45: 43 | F45: 34 | G45: Trade and Industry | J45: Nokuthula Ngomane | K45: (012) 315 5223 | L45: Nokuthula.Ngomane@treasury.gov.za | M45: Millicent Movare | N45: (012) 315 5279 | O45: Millicent.Movare@treasury.gov.za | S45: datafileNAT@treasury.gov.za | T45: 9290480 | U45: 8631385 | V45: 9133510 | X45: 34 | Y45: Trade and Industry | Z45: 9274795 | AA45: 9965857 | AB45: 9116002
B46: 23 | C46: 42 | D46: National School of Government | E46: 44 | F46: 43 | G46: Traditional Affairs | J46: Misaveni Ngobeni | K46: (012) 315 5305 | L46: misaveni.ngobeni@treasury.gov.za | M46: Millicent Mulaudzi | N46: (012) 395 6576 | O46: Millicent.Mulaudzi@treasury.gov.za | S46: datafileNAT@treasury.gov.za | T46: 141709 | U46: 150733 | V46: 160651 | X46: 43 | Y46: Traditional Affairs | Z46: 140596 | AA46: 149546 | AB46: 159381
B47: 30 | C47: 43 | D47: Public Service Commission | E47: 45 | F47: 35 | G47: Transport | J47: Ulrike Rwida | K47: (012) 315 5578 | L47: Ulrike.Rwida@treasury.gov.za | M47: Luyolo Ntlangula | N47: (012) 315 5571 | O47: Luyolo.Ntlangula@treasury.gov.za | S47: datafileNAT@treasury.gov.za | T47: 61100711 | U47: 65453336 | V47: 69127880 | X47: 35 | Y47: Transport | Z47: 59795180 | AA47: 64950207 | AB47: 68545887
E48: 46 | F48: 36 | G48: Water and Sanitation | J48: Misaveni Ngobeni | K48: (012) 315 5305 | L48: misaveni.ngobeni@treasury.gov.za | M48: Iqbal Mahomed Alli | N48: (012) 315 5809 | O48: Iqbal.Mahomed-Alli@treasury.gov.za | S48: datafileNAT@treasury.gov.za | T48: 16038266 | U48: 17159677 | V48: 18155413 | X48: 36 | Y48: Water and Sanitation | Z48: 15107449 | AA48: 16560799 | AB48: 17514811
E49: 47 | F49: 13 | G49: Women | J49: George Tembo | K49: (012) 315 5514 | L49: George.Tembo@treasury.gov.za | M49: Viwe Sobudula | N49: (012) 315 5015 | O49: Viwe.Sobudula@treasury.gov.za | S49: datafileNAT@treasury.gov.za | T49: 207440 | U49: 216876 | V49: 230517 | X49: 13 | Y49: Women | Z49: 206163 | AA49: 234003 | AB49: 248508
T50: =SUM(T3:T49) -> 1412958860 | U50: 1509109823 | V50: 1606959730 | X50: Grand Total | Z50: =SUM(Z3:Z49) -> 1405835247 | AA50: 1513958440 | AB50: 1619433560
Z52: =1404107892+1727355 -> 1405835247 | AA52: =1512115830+1842610 -> 1513958440 | AB52: =1617471161+1962399 -> 1619433560
Z53: =Z52-Z50 -> 0 | AA53: 0 | AB53: 0
E82: 25 | F82: 7 | T82: COE | X82: Personnel Revised Baseline
E83: Dept Index No. | F83: Vote No. | G83: Department | H83: Category | I83: ID1 | J83: Contact Person | K83: Tel | L83: email | M83: Contact Person | N83: Tel | O83: email | P83: ID2 | Q83: Contact Person | R83: Tel | S83: email | T83: 2017/18 | U83: 2018/19 | V83: 2019/20 | X83: Vote No. | Y83: Dept | Z83: 2017/18 | AA83: 2018/19 | AB83: 2019/20
E84: 1 | F84: 24 | G84: Agriculture, Forestry and Fisheries | J84: Bothwell Deka | K84: (012) 395 6784 | L84: Bothwell.Deka@treasury.gov.za | M84: Humbelani Ramuedzisi | N84: (012) 315 5585 | O84: Humbelani.Ramuedzisi@treasury.gov.za | S84: datafileNAT@treasury.gov.za | T84: 2129171 | U84: 2201926 | V84: =ROUND(2369272.36815277,0) -> 2369272 | X84: 24 | Y84: Agriculture, Forestry and Fisheries | Z84: 2105751 | AA84: 2177251 | AB84: 2343230
E85: 2 | F85: 37 | G85: Arts and Culture | J85: Judy Naidoo | K85: (012) 315 5269 | L85: Judy.Naidoo@treasury.gov.za | M85: Letsepa Pakkies | N85: (012) 395 6656 | O85: Letsepa.Pakkies@treasury.gov.za | S85: datafileNAT@treasury.gov.za | T85: 235049 | U85: 256403 | V85: =ROUND(275889.627086231,0) -> 275890 | X85: 37 | Y85: Arts and Culture | Z85: 232464 | AA85: 253530 | AB85: 272858
E86: 3 | F86: 14 | G86: Basic Education | J86: Spencer Janari | K86: (012) 315 5436 | L86: Spencer.Janari@treasury.gov.za | M86: Pindi Masiso | N86: (012) 315 5722 | O86: Pindi.Masiso@treasury.gov.za | S86: datafileNAT@treasury.gov.za | T86: 481996 | U86: 505953 | V86: =ROUND(544405.426196884,0) -> 544405 | X86: 14 | Y86: Basic Education | Z86: 479289 | AA86: 500283 | AB86: 538421
E87: 4 | F87: 47 | G87: Centre for Public Service Innovation | J87: George Tembo | K87: (012) 315 5514 | L87: George.Tembo@treasury.gov.za | M87: Mokgatla Tema | N87: (012) 315 5948 | O87: Mokgatla.Tema@treasury.gov.za | S87: datafileNAT@treasury.gov.za | T87: 18564 | U87: 19641 | V87: =ROUND(21133.7159300034,0) -> 21134 | X87: 47 | Y87: Centre for Public Service Innovation | Z87: 18360 | AA87: 19425 | AB87: 20902
E88: 5 | F88: 41 | G88: Civilian Secretariat | J88: Nompumelelo Radebe | K88: (012) 315 5957 | L88: Nompumelelo.Radebe@treasury.gov.za | M88: Sithabiso Buthelezi | N88: (012) 406 9025 | O88: Sithabiso.Buthelezi@treasury.gov.za | S88: datafileNAT@treasury.gov.za | T88: 89803 | U88: 98536 | V88: =ROUND(106024.735648837,0) -> 106025 | X88: 41 | Y88: Civilian Secretariat | Z88: 88815 | AA88: 97452 | AB88: 104859
E89: 6 | F89: 3 | G89: Communications | J89: Japie Jacobs | K89: (012) 315 5546 | L89: Japie.Jacobs@treasury.gov.za | M89: Rhoda Marais | N89: (012) 315 5906 | O89: Rhoda.Marais@treasury.gov.za | S89: datafileNAT@treasury.gov.za | T89: 70857 | U89: 74787 | V89: =ROUND(80470.811733474,0) -> 80471 | X89: 3 | Y89: Communications | Z89: 76697 | AA89: 81256 | AB89: 87682
E90: 7 | F90: 4 | G90: Cooperative Governance And Traditional Affairs | J90: Misaveni Ngobeni | K90: (012) 315 5305 | L90: misaveni.ngobeni@treasury.gov.za | M90: Millicent Mulaudzi | N90: (012) 395 6576 | O90: Millicent.Mulaudzi@treasury.gov.za | S90: datafileNAT@treasury.gov.za | T90: 342691 | U90: 343322 | V90: =ROUND(369414.470776469,0) -> 369414 | X90: 4 | Y90: Cooperative Governance And Traditional Affairs | Z90: 338922 | AA90: 339475 | AB90: 365354
E91: 8 | F91: 18 | G91: Correctional Services | J91: Werner Krause | K91: (012) 315 5211 | L91: Werner.Krause@treasury.gov.za | M91: Keabetswe Matlwa | N91: (012) 395 6678 | O91: Keabetswe.Matlwa@treasury.gov.za | S91: datafileNAT@treasury.gov.za | T91: 15952152 | U91: 17228003 | V91: =ROUND(18537331.1666028,0) -> 18537331 | X91: 18 | Y91: Correctional Services | Z91: 15776687 | AA91: 17034941 | AB91: 18333576
E92: 9 | F92: 19 | G92: Defence And Military Veterans | J92: Mashudu Bidzha | K92: (012) 315 5344 | L92: Mashudu.Bidzha@treasury.gov.za | M92: Lesiba Ledwaba | N92: (012) 395 6660 | O92: Lesiba.Ledwaba@treasury.gov.za | S92: datafileNAT@treasury.gov.za | T92: 26447971 | U92: 27116696 | V92: =ROUND(29177564.7993615,0) -> 29177565 | X92: 19 | Y92: Defence And Military Veterans | Z92: =26446983+988 -> 26447971 | AA92: =27115612+1084 -> 27116696 | AB92: =29176399+1166 -> 29177565
E93: 10 | F93: 25 | G93: Economic Development | J93: Rudzani Sikhwari | K93: (012) 315 5823 | L93: Rudzani.Sikhwari@treasury.gov.za | S93: datafileNAT@treasury.gov.za | T93: 91074 | U93: 91802 | V93: =ROUND(98778.951672836,0) -> 98779 | X93: 25 | Y93: Economic Development | Z93: 90072 | AA93: 90773 | AB93: 97693
E94: 11 | F94: 26 | G94: Energy | J94: Rezah Atcha | K94: (012) 315 5287 | L94: Rezah.Atcha@treasury.gov.za | M94: Nomagugu Madikane | N94: (012) 315 5312 | O94: Nomagugu.Madikane@treasury.gov.za | S94: datafileNAT@treasury.gov.za | T94: 314102 | U94: 327522 | V94: =ROUND(352413.670832777,0) -> 352414 | X94: 26 | Y94: Energy | Z94: 318247 | AA94: 331900 | AB94: 357039
E95: 12 | F95: 27 | G95: Environmental Affairs | J95: Ricardo Andrews | K95: (012) 315 5766 | L95: Ricardo.Andrews@treasury.gov.za | M95: Ashley Ramasimu | N95: (012) 315 5166 | O95: Mukundi.Maphangwa@treasury.gov.za | S95: datafileNAT@treasury.gov.za | T95: 1046585 | U95: 1090839 | V95: =ROUND(1173742.76011247,0) -> 1173743 | X95: 27 | Y95: Environmental Affairs | Z95: 1035073 | AA95: 1078615 | AB95: 1160842
E96: 13 | F96: 46 | G96: Government Communication and Information System | J96: Japie Jacobs | K96: (012) 315 5546 | L96: Japie.Jacobs@treasury.gov.za | M96: Thapelo Mokwana | N96: (012) 315 5796 | O96: Thapelo.Mokwana@treasury.gov.za | S96: datafileNAT@treasury.gov.za | T96: 237604 | U96: 254821 | V96: =ROUND(274187.395091869,0) -> 274187 | X96: 46 | Y96: Government Communication and Information System | Z96: 236825 | AA96: 253983 | AB96: 273302
E97: 14 | F97: 16 | G97: Health | J97: Aparna Kollipara | K97: (012) 315 5386 | L97: Aparna.Kollipara@treasury.gov.za | M97: Refiloe Thokoa | N97: (012) 395 6559 | O97: Refiloe.Thokoa@treasury.gov.za | S97: datafileNAT@treasury.gov.za | T97: 878298 | U97: 954316 | V97: =ROUND(1026844.01259901,0) -> 1026844 | X97: 16 | Y97: Health | Z97: 760037 | AA97: 828822 | AB97: 894357
E98: 15 | F98: 15 | G98: Higher Education and Training | J98: Nokwazi Makanya | K98: (012) 315 9057 | L98: Nokwazi.Makanya@treasury.gov.za | M98: Barileng Sape | N98: (012) 406 9069 | O98: Barileng.Sape@treasury.gov.za | S98: datafileNAT@treasury.gov.za | T98: 8429841 | U98: 8961753 | V98: =ROUND(9642846.1960621,0) -> 9642846 | X98: 15 | Y98: Higher Education and Training | Z98: 8425378 | AA98: 8956964 | AB98: 9637693
E99: 16 | F99: 5 | G99: Home Affairs | J99: Isaac Mabena | K99: (012) 315 5582 | L99: Isaac.Mabena@treasury.gov.za | S99: datafileNAT@treasury.gov.za | T99: 3233745 | U99: 3328378 | V99: =ROUND(3581334.71613832,0) -> 3581335 | X99: 5 | Y99: Home Affairs | Z99: 3198176 | AA99: 3308079 | AB99: 3558970
E100: 17 | F100: 38 | G100: Human Settlements | J100: James Archer | K100: (012) 395 6736 | L100: James.Archer@treasury.gov.za | M100: Lindiwe Ngcongwane | N100: (012) 315 5357 | O100: Lindiwe.Ngcongwane@treasury.gov.za | S100: datafileNAT@treasury.gov.za | T100: 387519 | U100: 381217 | V100: =ROUND(410189.490641418,0) -> 410189 | X100: 38 | Y100: Human Settlements | Z100: 383257 | AA100: 376945 | AB100: 405680
E101: 18 | F101: 20 | G101: Independent Police Investigative Directorate | J101: Nompumelelo Radebe | K101: (012) 315 5957 | L101: Nompumelelo.Radebe@treasury.gov.za | M101: Velisubuhle Buti | N101: (012) 395 6709 | O101: Sithabiso.Buthelezi@treasury.gov.za | S101: datafileNAT@treasury.gov.za | T101: 186157 | U101: 195797 | V101: =ROUND(210677.571302218,0) -> 210678 | X101: 20 | Y101: Independent Police Investigative Directorate | Z101: 186157 | AA101: 195797 | AB101: 210678
E102: 19 | F102: 6 | G102: International Relations and Cooperation | J102: Gcobisa Matshaya | K102: (012) 315 5320 | L102: Gcobisa.Matshaya@treasury.gov.za | M102: Thulasizwe Motha | N102: (012) 406 9019 | O102: Thulasizwe.Motha@treasury.gov.za | S102: datafileNAT@treasury.gov.za | T102: 2563514 | U102: 2655820 | V102: =ROUND(2857662.31053519,0) -> 2857662 | X102: 6 | Y102: International Relations and Cooperation | Z102: 2914027 | AA102: 2964490 | AB102: 2874494
E103: 20 | F103: 21 | G103: Justice and Constitutional Development | J103: Maggy Mokoka | K103: (012) 315 5468 | L103: Maggy.Mokoka@treasury.gov.za | M103: Rendani Randela | N103: (012) 315 5345 | O103: rendani.randela@treasury.gov.za | S103: datafileNAT@treasury.gov.za | T103: 10578040 | U103: 11067609 | V103: =ROUND(11908747.2445572,0) -> 11908747 | X103: 21 | Y103: Justice and Constitutional Development | Z103: 10578040 | AA103: 11067609 | AB103: 11908747
E104: 21 | F104: 28 | G104: Labour | J104: Judy Naidoo | K104: (012) 315 5269 | L104: Judy.Naidoo@treasury.gov.za | M104: Nico Likhethe | N104: (012) 315 5773 | O104: Velisubuhle.Buti@treasury.gov.za | S104: datafileNAT@treasury.gov.za | T104: 1221487 | U104: 1307915 | V104: =ROUND(1407316.53533885,0) -> 1407317 | X104: 28 | Y104: Labour | Z104: 1224502 | AA104: 1317790 | AB104: 1410207
E105: 22 | F105: 42 | G105: Military Veterans | J105: Mashudu Bidzha | K105: (012) 315 5344 | L105: Mashudu.Bidzha@treasury.gov.za | M105: Lesiba Ledwaba | N105: (012) 395 6660 | O105: Lesiba.Ledwaba@treasury.gov.za | S105: datafileNAT@treasury.gov.za | T105: 113829 | U105: 122257 | V105: =ROUND(131548.5315643,0) -> 131549 | X105: 42 | Y105: Military Veterans | Z105: 113829 | AA105: 122257 | AB105: 131549
E106: 23 | F106: 29 | G106: Mineral Resources | J106: Bothwell Deka | K106: (012) 395 6784 | L106: Bothwell.Deka@treasury.gov.za | M106: Tumelo Mokgoshi | N106: (012) 395 6777 | O106: Tumelo.Mokgoshi@treasury.gov.za | S106: datafileNAT@treasury.gov.za | T106: 579130 | U106: 604785 | V106: =ROUND(650748.657844667,0) -> 650749 | X106: 29 | Y106: Mineral Resources | Z106: 572760 | AA106: 598008 | AB106: 643596
E107: 24 | F107: 44 | G107: National School of Government | J107: George Tembo | K107: (012) 315 5514 | L107: George.Tembo@treasury.gov.za | M107: Mokgatla Tema | N107: (012) 315 5948 | O107: Mokgatla.Tema@treasury.gov.za | S107: datafileNAT@treasury.gov.za | T107: 52488 | U107: 59340 | V107: =ROUND(63849.8397885241,0) -> 63850 | X107: 44 | Y107: National School of Government | Z107: 51911 | AA107: 58687 | AB107: 63148
E108: 25 | F108: 7 | G108: National Treasury | J108: Japie Jacobs | K108: (012) 315 5546 | L108: Japie.Jacobs@treasury.gov.za | M108: Rhoda Marais | N108: (012) 315 5906 | O108: Rhoda.Marais@treasury.gov.za | S108: datafileNAT@treasury.gov.za | T108: 808165 | U108: 816915 | V108: =ROUND(879000.537088678,0) -> 879001 | X108: 7 | Y108: National Treasury | Z108: 799276 | AA108: 807760 | AB108: 869339
E109: 26 | F109: 22 | G109: Office of the Chief Justice and Judicial Administration | J109: Werner Krause | K109: (012) 315 5211 | L109: Werner.Krause@treasury.gov.za | M109: Keabetswe Matlwa | N109: (012) 395 6678 | O109: Keabetswe.Matlwa@treasury.gov.za | S109: datafileNAT@treasury.gov.za | T109: 1524040 | U109: 1609065 | V109: =ROUND(1731353.93426561,0) -> 1731354 | X109: 22 | Y109: Office of the Chief Justice and Judicial Administration | Z109: 1533598 | AA109: 1619187 | AB109: 1742043
E110: 27 | F110: 2 | G110: Parliament | J110: Isaac Mabena | K110: (012) 315 5582 | L110: Isaac.Mabena@treasury.gov.za | S110: datafileNAT@treasury.gov.za | T110: 1356714 | U110: 1406925 | V110: =ROUND(1513851.294986,0) -> 1513851 | X110: 2 | Y110: Parliament | Z110: 1341791 | AA110: 1391159 | AB110: 1497211
E111: 28 | F111: 8 | G111: Planning, Monitoring and Evaluation | J111: Gcobisa Matshaya | K111: (012) 315 5320 | L111: Gcobisa.Matshaya@treasury.gov.za | M111: Thulasizwe Motha | N111: (012) 406 9019 | O111: Thulasizwe.Motha@treasury.gov.za | S111: datafileNAT@treasury.gov.za | T111: 279163 | U111: 318997 | V111: =ROUND(343240.770863158,0) -> 343241 | X111: 8 | Y111: Planning, Monitoring and Evaluation | Z111: 276092 | AA111: 312788 | AB111: 331556
E112: 29 | F112: 23 | G112: Police | J112: Nompumelelo Radebe | K112: (012) 315 5957 | L112: Nompumelelo.Radebe@treasury.gov.za | M112: Sithabiso Buthelezi | N112: (012) 406 9025 | O112: Sithabiso.Buthelezi@treasury.gov.za | S112: datafileNAT@treasury.gov.za | T112: 66196773 | U112: 70655395 | V112: =ROUND(76025204.7681982,0) -> 76025205 | X112: 23 | Y112: Police | Z112: 66196773 | AA112: 70655395 | AB112: 76025205
E113: 30 | F113: 9 | G113: Public Enterprises | J113: Thabiso Molewa | K113: (012) 315 6780 | L113: Thabiso.Molewa@treasury.gov.za | S113: datafileNAT@treasury.gov.za | T113: 168797 | U113: 173464 | V113: =ROUND(186647.263381809,0) -> 186647 | X113: 9 | Y113: Public Enterprises | Z113: 166940 | AA113: 171520 | AB113: 184595
E114: 31 | F114: 10 | G114: Public Service and Administration | J114: George Tembo | K114: (012) 315 5514 | L114: George.Tembo@treasury.gov.za | M114: Mokgatla Tema | N114: (012) 315 5948 | O114: Mokgatla.Tema@treasury.gov.za | S114: datafileNAT@treasury.gov.za | T114: 278777 | U114: 291921 | V114: =ROUND(314106.994959652,0) -> 314107 | X114: 10 | Y114: Public Service and Administration | Z114: 275711 | AA114: 288650 | AB114: 310654
E115: 32 | F115: 45 | G115: Public Service Commission | J115: George Tembo | K115: (012) 315 5514 | L115: George.Tembo@treasury.gov.za | M115: Viwe Sobudula | N115: (012) 315 5015 | O115: Viwe.Sobudula@treasury.gov.za | S115: datafileNAT@treasury.gov.za | T115: 195322 | U115: 209569 | V115: =ROUND(225496.243253138,0) -> 225496 | X115: 45 | Y115: Public Service Commission | Z115: 193173 | AA115: 207264 | AB115: 223016
E116: 33 | F116: 11 | G116: Public Works | J116: George Tembo | K116: (012) 315 5514 | L116: George.Tembo@treasury.gov.za | M116: Mercy Mhlophe | N116: (012) 315 5598 | O116: Mercy.Mhlophe@treasury.gov.za | S116: datafileNAT@treasury.gov.za | T116: 488401 | U116: 520564 | V116: =ROUND(560126.862144814,0) -> 560127 | X116: 11 | Y116: Public Works | Z116: 486413 | AA116: 518347 | AB116: 557826
E117: 34 | F117: 39 | G117: Rural Development and Land Reform | J117: Bothwell Deka | K117: (012) 395 6784 | L117: Bothwell.Deka@treasury.gov.za | M117: Kismore Mangondo | N117: (012) 315 5558 | O117: Kismore.Mangondo@treasury.gov.za | S117: datafileNAT@treasury.gov.za | T117: 2218992 | U117: 2351947 | V117: =ROUND(2530694.96361813,0) -> 2530695 | X117: 39 | Y117: Rural Development and Land Reform | Z117: 2194584 | AA117: 2325590 | AB117: 2502879
E118: 35 | F118: 30 | G118: Science and Technology | J118: Ricardo Andrews | K118: (012) 315 5766 | L118: Ricardo.Andrews@treasury.gov.za | S118: datafileNAT@treasury.gov.za | T118: 319036 | U118: 331404 | V118: =ROUND(356590.702818942,0) -> 356591 | X118: 30 | Y118: Science and Technology | Z118: 315527 | AA118: 327690 | AB118: 352671
E119: 36 | F119: 31 | G119: Small Business Development | J119: Rudzani Sikhwari | K119: (012) 315 5823 | L119: Rudzani.Sikhwari@treasury.gov.za | S119: datafileNAT@treasury.gov.za | T119: 139060 | U119: 143100 | V119: =ROUND(153975.59949002,0) -> 153976 | X119: 31 | Y119: Small Business Development | Z119: 137530 | AA119: 141496 | AB119: 152284
E120: 37 | F120: 17 | G120: Social Development | J120: Lindi Mzankomo | K120: (012) 315 5256 | L120: Lindi.Mzankomo@treasury.gov.za | M120: Yusuf Mayet | N120: (012) 315 5189 | O120: Yusuf.Mayet@treasury.gov.za | S120: datafileNAT@treasury.gov.za | T120: 465532 | U120: 478373 | V120: =ROUND(514729.346295174,0) -> 514729 | X120: 17 | Y120: Social Development | Z120: 476811 | AA120: 490351 | AB120: 527441
E121: 38 | F121: 40 | G121: Sport and Recreation South Africa | J121: Spencer Janari | K121: (012) 315 5436 | L121: Spencer.Janari@treasury.gov.za | M121: Letsepa Pakkies | N121: (012) 395 6656 | O121: Letsepa.Pakkies@treasury.gov.za | S121: datafileNAT@treasury.gov.za | T121: 107284 | U121: 113334 | V121: =ROUND(121947.3835961,0) -> 121947 | X121: 40 | Y121: Sport and Recreation South Africa | Z121: 106104 | AA121: 111545 | AB121: 120058
E122: 39 | F122: 12 | G122: Statistics South Africa | J122: Japie Jacobs | K122: (012) 315 5546 | L122: Japie.Jacobs@treasury.gov.za | M122: Thapelo Mokwana | N122: (012) 315 5796 | O122: Thapelo.Mokwana@treasury.gov.za | S122: datafileNAT@treasury.gov.za | T122: 1367257 | U122: 1373861 | V122: =ROUND(1460988.43110383,0) -> 1460988 | X122: 12 | Y122: Statistics South Africa | Z122: 1352218 | AA122: 1428465 | AB122: 1444929
E123: 40 | F123: 32 | G123: Telecommunications and Postal Services | J123: Rezah Atcha | K123: (012) 315 5287 | L123: Rezah.Atcha@treasury.gov.za | M123: Keitumetse Motshegwe | N123: (012) 395 6750 | O123: keitumetse.motshegwe@treasury.gov.za | S123: datafileNAT@treasury.gov.za | T123: 217094 | U123: 226842 | V123: =ROUND(244081.99119158,0) -> 244082 | X123: 32 | Y123: Telecommunications and Postal Services | Z123: 214706 | AA123: 224300 | AB123: 241399
E124: 41 | F124: 1 | G124: The Presidency | J124: Gcobisa Matshaya | K124: (012) 315 532 | L124: Gcobisa.Matshaya@treasury.gov.za | M124: Thulasizwe Motha | N124: (012) 406 9019 | O124: Thulasizwe.Motha@treasury.gov.za | S124: datafileNAT@treasury.gov.za | T124: 321925 | U124: 332663 | V124: =ROUND(357945.386814455,0) -> 357945 | X124: 1 | Y124: The Presidency | Z124: 318384 | AA124: 328935 | AB124: 354011
E125: 42 | F125: 33 | G125: Tourism | J125: Ricardo Andrews | K125: (012) 315 5766 | L125: Ricardo.Andrews@treasury.gov.za | M125: Thamsanqa Nhlapo | N125: (012) 315 5024 | O125: Thamsanqa.Nhlapo@treasury.gov.za | S125: datafileNAT@treasury.gov.za | T125: 274896 | U125: 285801 | V125: =ROUND(307521.874981462,0) -> 307522 | X125: 33 | Y125: Tourism | Z125: 271872 | AA125: 282598 | AB125: 304142
E126: 43 | F126: 34 | G126: Trade and Industry | J126: Nokuthula Ngomane | K126: (012) 315 5223 | L126: Nokuthula.Ngomane@treasury.gov.za | M126: Millicent Movare | N126: (012) 315 5279 | O126: Millicent.Movare@treasury.gov.za | S126: datafileNAT@treasury.gov.za | T126: 912451 | U126: 938361 | V126: =ROUND(1009676.43265587,0) -> 1009676 | X126: 34 | Y126: Trade and Industry | Z126: 902415 | AA126: 927845 | AB126: 998578
E127: 44 | F127: 43 | G127: Traditional Affairs | J127: Misaveni Ngobeni | K127: (012) 315 5305 | L127: misaveni.ngobeni@treasury.gov.za | M127: Millicent Mulaudzi | N127: (012) 395 6576 | O127: Millicent.Mulaudzi@treasury.gov.za | S127: datafileNAT@treasury.gov.za | T127: 69043 | U127: 73853 | V127: =ROUND(79465.8277368026,0) -> 79466 | X127: 43 | Y127: Traditional Affairs | Z127: 69043 | AA127: 73853 | AB127: 79466
E128: 45 | F128: 35 | G128: Transport | J128: Ulrike Rwida | K128: (012) 315 5578 | L128: Ulrike.Rwida@treasury.gov.za | M128: Luyolo Ntlangula | N128: (012) 315 5571 | O128: Luyolo.Ntlangula@treasury.gov.za | S128: datafileNAT@treasury.gov.za | T128: 439021 | U128: 457837 | V128: =ROUND(492632.61036836,0) -> 492633 | X128: 35 | Y128: Transport | Z128: 450021 | AA128: 469961 | AB128: 505888
E129: 46 | F129: 36 | G129: Water and Sanitation | J129: Misaveni Ngobeni | K129: (012) 315 5305 | L129: misaveni.ngobeni@treasury.gov.za | M129: Iqbal Mahomed Alli | N129: (012) 315 5809 | O129: Iqbal.Mahomed-Alli@treasury.gov.za | S129: datafileNAT@treasury.gov.za | T129: 1670228 | U129: 1739701 | V129: =ROUND(1871918.26980005,0) -> 1871918 | X129: 36 | Y129: Water and Sanitation | Z129: 1651856 | AA129: 1720205 | AB129: 1851343
E130: 47 | F130: 13 | G130: Women | J130: George Tembo | K130: (012) 315 5514 | L130: George.Tembo@treasury.gov.za | M130: Viwe Sobudula | N130: (012) 315 5015 | O130: Viwe.Sobudula@treasury.gov.za | S130: datafileNAT@treasury.gov.za | T130: 72839 | U130: 74776 | V130: =ROUND(80458.9757335132,0) -> 80459 | X130: 13 | Y130: Women | Z130: 72038 | AA130: 85578 | AB130: 91867
T131: =SUM(T84:T130) -> 155572477 | U131: 164174106 | V131: 176634052 | X131: Grand Total | Z131: =SUM(Z84:Z130) -> 155456123 | AA131: 164081510 | AB131: 176140843
